bitfinex/quotes_ETHUSD_20220112
["timestamp","ask_amount","ask_price","bid_price","bid_amount"]
[1642028742006,0.12013685,3361.3,3360.1,0.74381]
[1642028742409,0.12013685,3361.3,3360.2,0.00511581]
[1642028742607,1.17599749,3360.7,3360.3,1.34629057]
[1642028742809,1.54633576,3361.2,3360.6,1.27234222]
[1642028743110,2.30966012,3361.2,3360.7,0.00227369]
[1642028743909,0.119,3361.1,3360.7,0.00227369]
[1642028744109,0.119,3361.1,3360.4,0.00397896]
[1642028744308,0.88232436,3361.1,3360.4,0.00397896]
[1642028744544,1.15390376,3360.6,3360.5,1.5116017]
[1642028744946,0.88232436,3361.1,3360.5,1.51501224]
[1642028745344,0.88232436,3361.1,3360.6,0.00284211]
[1642028745646,0.119,3361.1,3360.6,0.00284211]
[1642028745847,1.56173501,3361.0,3360.6,0.00284211]
[1642028746450,2.31684361,3361.0,3360.6,0.00284211]
[1642028747149,1.56173501,3361.0,3360.6,0.00284211]
[1642028751300,0.00113685,3361.3,3360.7,0.74368]
[1642028751501,0.00113685,3361.3,3360.9,0.4496]
[1642028751700,0.00113685,3361.3,3361.2,0.4496]
[1642028752151,0.00113685,3361.3,3360.8,0.0657181]
[1642028752350,1.56243715,3361.3,3361.0,1.28465521]
[1642028752551,1.56243715,3361.3,3361.0,0.7436312]
[1642028760552,1.55494888,3361.3,3361.0,0.7436312]
[1642028760953,1.55494888,3361.3,3361.1,0.00113684]
[1642028761955,1.35761469,3361.6,3361.1,0.00113684]
[1642028762355,0.00113685,3361.5,3361.1,0.00113684]
[1642028762955,0.7280493,3361.5,3361.1,0.00113684]
[1642028763602,0.7280493,3361.5,3361.1,3.65118347]
[1642028763801,1.41024037,3362.3,3361.4,6.8]
[1642028764000,1.41024037,3362.3,3361.5,17.83415116]
[1642028764200,0.00341054,3362.1,3361.6,0.03818289]
[1642028764499,0.00284212,3362.0,3361.6,1.06401283]
[1642028764699,0.00284212,3362.0,3361.7,0.10182784]
[1642028764903,0.00227369,3361.9,3361.8,1.53371856]
[1642028765100,0.00227369,3361.9,3361.8,0.06401283]
[1642028765299,0.00227369,3361.9,3361.5,15.003]
[1642028765702,0.00170527,3361.8,3361.5,15.003]
[1642028766100,6.2606686,3361.6,3361.5,15.003]
[1642028766301,6.2729762,3361.6,3360.0,1.51009463]
[1642028766601,7.66274131,3361.3,3360.1,0.00795793]
[1642028766802,0.119,3361.2,3360.1,0.00625793]
[1642028767246,6.05,3360.5,3359.5,3.46978926]
[1642028767446,0.01284022,3359.7,3359.0,3.77523657]
[1642028767653,7.65,3359.6,3359.1,1.52013632]
[1642028767846,7.65,3359.6,3359.1,0.00284211]
[1642028767847,0.01226422,3359.2,3359.1,0.00284211]
[1642028768051,0.13126422,3359.2,3359.1,0.00284211]
[1642028768252,2.57304873,3359.2,3359.0,0.00341054]
[1642028768449,0.119,3359.1,3359.0,0.00341054]
[1642028769453,0.119,3359.1,3358.7,0.00511581]
[1642028769652,0.119,3359.1,3358.6,0.00568423]
[1642028769852,1.29765564,3359.2,3358.6,0.00568423]
[1642028770250,1.29765564,3359.2,3358.6,0.00454423]
[1642028770451,0.74434,3359.0,3358.6,0.00454423]
[1642028776459,0.74434,3359.0,3358.8,1.48670833]
[1642028776660,8.04626233,3360.8,3358.8,1.48670833]
[1642028776661,1.1858,3360.2,3358.8,1.48670833]
[1642028776859,3.15090527,3360.4,3358.9,0.15355743]
[1642028777058,0.00398212,3360.1,3358.9,0.15355743]
[1642028777359,0.0034137,3360.0,3359.1,0.04992172]
[1642028777559,0.0034137,3360.0,3359.4,0.04734529]
[1642028777761,1.11135856,3360.5,3359.4,1.29731674]
[1642028777762,1.29866719,3359.8,3359.4,1.29731674]
[1642028777960,1.29866719,3359.8,3359.4,1.24997145]
[1642028778201,0.00170843,3359.7,3359.4,1.24997145]
[1642028778607,0.00114,3359.6,3359.4,1.24997145]
[1642028778905,1.85542856,3360.5,3359.4,1.24997145]
[1642028778906,0.00568739,3360.4,3359.4,1.24997145]
[1642028779105,1.51481433,3360.1,3359.4,1.24997145]
[1642028779509,0.0034137,3360.0,3359.4,1.24997145]
[1642028779906,0.00284527,3359.9,3359.4,1.24997145]
[1642028780307,0.00227685,3359.8,3359.3,1.21794757]
[1642028780609,0.00170843,3359.7,3359.2,0.74518599]
[1642028781006,0.00114,3359.6,3359.2,0.74518599]
[1642028781410,0.0034137,3360.0,3359.2,0.74518599]
[1642028781609,0.0034137,3360.0,3359.5,2.14187045]
[1642028781808,1.51481433,3360.1,3359.5,2.14187045]
[1642028781809,0.00284527,3359.9,3359.5,2.14187045]
[1642028782080,0.00227685,3359.8,3359.5,2.14187045]
[1642028782480,0.00170843,3359.7,3359.5,2.14187045]
[1642028782880,0.00114,3359.6,3359.5,2.14187045]
[1642028783080,1.01595433,3360.1,3359.5,2.14187045]
[1642028783281,0.0034137,3360.0,3359.5,2.14187045]
[1642028783680,0.00170527,3359.9,3359.5,2.14187045]
[1642028783883,0.00170527,3359.9,3359.5,1.39789725]
[1642028784081,0.00113685,3359.8,3359.4,1.52374573]
[1642028784580,1.01595433,3360.1,3359.4,1.52374573]
[1642028784581,0.0022737,3360.0,3359.4,1.52374573]
[1642028784981,0.00170527,3359.9,3359.4,1.52374573]
[1642028785382,0.00113685,3359.8,3359.4,1.52374573]
[1642028785798,0.0022737,3360.0,3359.4,1.52374573]
[1642028786201,0.00170527,3359.9,3359.4,1.52374573]
[1642028786406,0.00170527,3359.9,3359.4,3.5]
[1642028786602,0.00113685,3359.8,3359.4,3.5]
[1642028786803,0.00113685,3359.8,3359.5,1.13123146]
[1642028787003,1.01595433,3360.1,3359.6,0.03868108]
[1642028787004,0.0022737,3360.0,3359.6,0.03868108]
[1642028787204,0.0022737,3360.0,3359.4,3.5]
[1642028787404,0.00170527,3359.9,3359.4,3.5]
[1642028787604,0.00170527,3359.9,3359.4,5.0096978]
[1642028787804,0.00113685,3359.8,3359.4,5.0096978]
[1642028788207,0.0022737,3360.0,3359.7,1.39994391]
[1642028788405,0.0022737,3360.0,3359.4,1.5096978]
[1642028788609,0.00170527,3359.9,3359.2,3.50113369]
[1642028788807,0.7442,3359.7,3359.2,3.50113369]
[1642028789009,0.7442,3359.7,3359.3,0.00170527]
[1642028789450,1.56463956,3359.4,3359.3,0.00170527]
[1642028791557,0.00113685,3359.8,3359.3,0.00170527]
[1642028793509,0.74419,3359.7,3359.3,0.00170527]
[1642028793709,1.43077714,3359.6,3359.3,0.00170527]
[1642028795113,1.43077714,3359.6,3359.5,0.00365948]
[1642028800058,1.43077714,3359.6,3359.3,0.00536475]
[1642028800461,1.43077714,3359.6,3359.4,0.00113684]
[1642028800909,0.00113685,3359.8,3358.9,3.84311855]
[1642028801312,0.00170527,3359.7,3359.0,0.06628653]
[1642028801711,1.1672,3360.2,3358.9,3.84311855]
[1642028801712,0.00113684,3359.6,3359.1,0.0657181]
[1642028801912,0.00113684,3359.6,3359.2,3.5]
[1642028802112,1.15078681,3360.1,3359.8,1.28371359]
[1642028802313,0.00397896,3360.1,3359.8,1.28371359]
[1642028802511,1.488,3360.8,3359.8,1.28371359]
[1642028802512,0.00341054,3360.0,3359.8,1.28371359]
[1642028802711,0.00341054,3360.0,3359.9,0.06401283]
[1642028802910,9.05807151,3361.1,3359.9,0.06401283]
[1642028802911,5.36107151,3361.1,3359.9,0.06401283]
[1642028803310,0.00909477,3361.0,3360.3,1.40077553]
[1642028803510,1.5460591,3360.9,3360.3,1.40077553]
[1642028803712,1.55458545,3360.9,3359.9,0.06401283]
[1642028803913,0.00795792,3360.8,3360.0,0.7438753]
[1642028804311,0.0073895,3360.7,3360.0,0.7438753]
[1642028804765,1.40167614,3360.3,3360.1,3.5]
[1642028805166,0.00454738,3360.2,3360.1,3.5]
[1642028805669,0.01442216,3360.1,3359.3,7.4385]
[1642028805866,0.119,3360.1,3359.3,3.5]
[1642028806069,0.00341054,3360.0,3359.3,3.5]
[1642028806268,0.00341054,3360.0,3359.2,0.00113685]
[1642028806269,0.74432,3359.6,3359.2,0.00113685]
[1642028806467,1.19363061,3359.4,3359.2,0.00113685]
[1642028806666,1.19363061,3359.4,3358.3,2.68039175]
[1642028806667,0.119,3359.3,3358.4,0.00568424]
[1642028807966,0.86315,3359.8,3359.0,1.52563435]
[1642028808251,0.86315,3359.8,3359.1,0.00170527]
[1642028808252,0.00170527,3359.7,3359.1,0.00170527]
[1642028808646,0.00113684,3359.6,3359.1,0.00170527]
[1642028809042,0.74415,3359.8,3359.1,0.00170527]
[1642028809043,0.00170527,3359.7,3359.1,0.00170527]
[1642028809444,0.00113684,3359.6,3359.1,0.00170527]
[1642028809844,1.16493736,3359.5,3359.1,1.14549984]
[1642028810044,1.16493736,3359.5,3359.1,1.27313988]
[1642028810246,1.16493736,3359.5,3359.2,0.00113685]
[1642028811247,1.16493736,3359.5,3359.2,0.12877689]
[1642028812258,1.16493736,3359.5,3359.2,0.00113685]
[1642028812448,0.74589527,3359.7,3359.2,0.00113685]
[1642028812650,0.74589527,3359.7,3359.1,0.00170527]
[1642028812850,0.00113684,3359.6,3359.1,0.00170527]
[1642028813457,0.74534684,3359.6,3359.1,0.00170527]
[1642028813858,0.74534684,3359.6,3359.1,0.12934457]
[1642028813859,3.12807791,3359.6,3359.1,0.12934457]
[1642028814259,3.12807791,3359.6,3359.2,0.00113685]
[1642028814659,2.38273107,3359.5,3359.2,0.00113685]
[1642028815060,2.38273107,3359.5,3358.6,0.00454739]
[1642028815061,1.44418514,3358.8,3358.6,0.00454739]
[1642028815263,0.74425,3359.3,3358.6,0.00454739]
[1642028815561,2.50173107,3359.5,3358.6,0.74875159]
[1642028815814,2.38273107,3359.5,3358.6,0.74875159]
[1642028816012,2.38273107,3359.5,3358.7,0.00397897]
[1642028816413,1.49054101,3359.3,3358.6,0.00454739]
[1642028816814,1.49054101,3359.3,3358.7,0.1276393]
[1642028817213,1.49054101,3359.3,3358.8,0.00341054]
[1642028817613,2.38273107,3359.2,3358.8,0.00341054]
[1642028818414,2.38273107,3359.2,3358.9,0.1276393]
[1642028819216,2.38273107,3359.2,3358.8,0.00341054]
[1642028819664,2.38273107,3359.2,3358.7,0.00397897]
[1642028820067,2.23480101,3359.3,3358.9,0.1276393]
[1642028820969,2.37193937,3359.2,3358.8,0.1276393]
[1642028821469,2.37193937,3359.2,3358.9,0.00284212]
[1642028822571,1.10196012,3359.0,3358.9,0.00284212]
[1642028823406,1.51985406,3358.6,3358.3,0.00625266]
[1642028823607,0.74437,3358.9,3358.3,0.00625266]
[1642028824415,0.74453,3358.6,3358.3,0.00625266]
[1642028824608,0.1191,3358.5,3358.3,0.00625266]
[1642028825216,1.10874772,3358.4,3358.3,0.00625266]
[1642028825414,0.74455,3358.2,3357.8,0.00909478]
[1642028826714,0.74455,3358.2,3357.9,0.12768167]
[1642028827150,0.74455,3358.2,3358.0,0.00795793]
[1642028828359,0.74455,3358.2,3358.0,1.44608049]
[1642028828556,0.1191,3359.1,3358.0,1.44608049]
[1642028828758,3.1292,3359.2,3358.0,1.44608049]
[1642028828759,3.1292,3359.2,3358.1,0.00738951]
[1642028828957,2.69090617,3359.3,3358.1,0.00738951]
[1642028829159,2.69090617,3359.3,3358.2,1.48835]
[1642028829358,2.36222828,3359.0,3358.4,0.74422]
[1642028829559,2.36222828,3359.0,3358.7,1.48814046]
[1642028829961,2.36222828,3359.0,3358.8,0.00341054]
[1642028831131,2.36222828,3359.5,3358.9,1.34943919]
[1642028832434,2.36222828,3359.5,3359.4,1.5190023]
[1642028832637,2.36336512,3359.6,3359.4,1.5190023]
[1642028833533,2.36336512,3359.6,3359.5,1.12103633]
[1642028833735,0.00113684,3359.6,3359.5,1.12103633]
[1642028835160,0.00113684,3359.6,3359.5,5.52103633]
[1642028835563,0.00113684,3359.6,3359.5,6.52103633]
[1642028835764,2.36222828,3360.2,3359.6,7.25]
[1642028835961,2.36222828,3360.2,3359.9,0.74371]
[1642028836160,0.00284212,3360.1,3360.0,1.28958916]
[1642028845466,0.00284212,3360.1,3359.8,0.7437083]
[1642028845467,0.00284212,3360.1,3359.5,1.12103633]
[1642028845724,0.00284212,3360.1,3359.5,1.86499053]
[1642028845931,0.0022737,3360.0,3359.6,0.74394]
[1642028846329,1.51832864,3361.0,3359.6,0.74394]
[1642028846330,0.00170527,3359.9,3359.6,0.74394]
[1642028846731,0.00113685,3359.8,3359.6,0.74394]
[1642028846930,0.00113685,3359.8,3359.7,1.90829208]
[1642028847129,0.119,3360.4,3360.2,1.2166183]
[1642028848130,2.50431377,3360.6,3360.2,1.2166183]
[1642028848533,0.00511581,3360.5,3360.2,1.2166183]
[1642028848933,0.00454739,3360.4,3360.2,1.2166183]
[1642028849332,0.119,3361.3,3360.3,1.2204007]
[1642028849758,0.00909478,3361.2,3360.3,1.2204007]
[1642028849958,0.119,3361.1,3360.3,1.2204007]
[1642028850157,0.12752635,3361.1,3360.3,1.2204007]
[1642028850358,0.00795793,3361.0,3360.3,1.2204007]
[1642028850559,0.00795793,3361.0,3360.5,0.7437035]
[1642028850760,0.00738951,3360.9,3360.5,0.7437035]
[1642028851169,0.00682108,3360.8,3360.5,0.7437035]
[1642028851564,0.00625266,3360.7,3360.5,0.7437035]
[1642028851962,0.00568424,3360.6,3360.5,0.7437035]
[1642028852662,0.00568424,3360.6,3360.5,1.4874435]
[1642028854508,0.00568424,3360.6,3360.5,0.74374]
[1642028854908,0.07468424,3361.5,3360.5,0.74374]
[1642028855308,0.00454739,3361.4,3360.5,0.74374]
[1642028855508,0.119,3361.3,3360.5,0.74374]
[1642028855708,0.12297896,3361.3,3360.5,0.74374]
[1642028855914,0.00341054,3361.2,3360.5,0.74374]
[1642028856317,0.00284211,3361.1,3360.5,0.74374]
[1642028856713,0.00227369,3361.0,3360.5,0.74374]
[1642028857153,0.00170527,3360.9,3360.5,0.74374]
[1642028857554,0.00113684,3360.8,3360.6,1.23584721]
[1642028864117,0.00113684,3360.8,3360.7,3.5]
[1642028865156,2.32843714,3361.4,3361.0,1.48543186]
[1642028865157,2.27957398,3361.4,3361.0,1.48543186]
[1642028865356,0.119,3361.5,3361.0,1.48543186]
[1642028865555,0.00284212,3361.3,3361.0,1.48543186]
[1642028865960,0.0022737,3361.2,3361.0,0.48543186]
[1642028866362,0.00170527,3361.1,3360.6,1.23584721]
[1642028866767,0.00113685,3361.0,3360.6,1.23584721]
[1642028867162,0.00397897,3361.5,3360.6,1.23584721]
[1642028867468,0.00341055,3361.4,3361.3,1.14661106]
[1642028869717,0.00341055,3361.4,3360.8,1.33622761]
[1642028871122,0.00341055,3361.4,3360.9,1.22039963]
[1642028875162,1.42389013,3361.4,3360.9,1.22039963]
[1642028880269,1.42047958,3361.2,3360.9,1.22039963]
[1642028880668,0.00170527,3361.1,3360.9,1.22039963]
[1642028881072,0.00113685,3361.0,3360.9,1.22039963]
[1642028885419,2.12868581,3361.7,3361.0,7.15]
[1642028885721,0.91907751,3361.5,3361.3,3.8]
[1642028885928,0.91907751,3361.5,3361.1,0.1189]
[1642028886124,0.0022737,3361.4,3361.3,0.1189]
[1642028886323,0.0022737,3361.4,3361.2,0.18291283]
[1642028886523,0.0022737,3361.4,3361.3,0.06401283]
[1642028886725,6.2397001,3362.2,3362.0,1.50502671]
[1642028886961,6.2397001,3362.2,3362.1,1.12564743]
[1642028887157,1.35158027,3362.6,3362.1,1.12564743]
[1642028887556,0.00852635,3362.5,3362.1,1.12564743]
[1642028887961,0.00795793,3362.4,3362.1,1.12564743]
[1642028888462,0.00738951,3362.3,3362.1,1.12564743]
[1642028888860,0.00682108,3362.2,3362.1,1.12564743]
[1642028889459,0.00682108,3362.2,3361.4,0.1189]
[1642028889660,0.86267,3362.1,3360.9,0.1189]
[1642028889865,3.30195932,3362.0,3360.6,1.149]
[1642028890063,0.12234094,3361.9,3360.6,1.2679]
[1642028890263,0.12411581,3361.9,3360.7,0.00170527]
[1642028890461,0.00454739,3361.8,3360.7,0.00170527]
[1642028890707,1.54616242,3361.7,3361.3,1.48179205]
[1642028890912,1.55014139,3361.7,3361.3,1.48179205]
[1642028891113,0.00341054,3361.6,3361.3,1.48179205]
[1642028891312,1.88467126,3361.6,3361.3,1.48179205]
[1642028891614,0.00284212,3361.5,3361.3,1.48179205]
[1642028892013,0.0022737,3361.4,3361.3,1.48179205]
[1642028892421,0.00284212,3361.4,3361.3,1.48179205]
[1642028893415,0.00284212,3361.4,3360.7,0.00170527]
[1642028893714,1.88126072,3361.6,3360.7,0.00170527]
[1642028893715,0.74553527,3361.3,3360.7,0.00170527]
[1642028894115,0.00113685,3361.2,3360.7,0.00170527]
[1642028894560,0.00170527,3361.3,3360.7,0.00170527]
[1642028894965,1.48898685,3361.2,3361.1,1.45744722]
[1642028895159,2.92454976,3361.2,3361.1,1.43984722]
[1642028895464,3.96846976,3361.2,3360.8,0.00035643]
[1642028895662,8.09671157,3361.2,3360.8,0.00035643]
[1642028896063,5.11606976,3361.2,3360.8,0.00035643]
[1642028896264,8.0276007,3361.2,3360.8,0.00035643]
[1642028896464,8.0276007,3361.2,3360.8,1.35259617]
[1642028896665,0.74392,3361.1,3360.8,1.35259617]
[1642028896863,0.74392,3361.1,3360.9,1.17231862]
[1642028897165,1.43669976,3361.2,3360.9,1.17231862]
[1642028898819,0.00113685,3361.2,3360.9,1.17231862]
[1642028899217,0.00113685,3361.2,3360.9,1.23652161]
[1642028899419,0.00113685,3361.2,3360.9,2.23652161]
[1642028899618,0.00113685,3361.2,3361.0,0.74364]
[1642028900022,0.00113685,3361.2,3361.1,5.31420299]
[1642028900223,0.00113685,3361.2,3361.1,0.06420299]
[1642028900424,0.00113685,3361.2,3360.9,1.17231862]
[1642028904060,1.53093844,3361.2,3360.8,0.119]
[1642028904262,0.00113685,3361.2,3360.7,0.00170527]
[1642028904663,0.00113685,3361.2,3360.2,0.00454739]
[1642028905063,0.00113685,3361.2,3360.2,0.74382]
[1642028905262,0.00113685,3361.2,3360.2,0.86282]
[1642028905467,0.74499685,3361.2,3360.8,1.09670461]
[1642028905716,0.00113685,3361.2,3360.8,1.09670461]
[1642028907016,0.00113685,3361.2,3360.9,1.2584906]
[1642028908719,0.00113685,3361.2,3360.7,0.119]
[1642028908919,0.119,3361.1,3360.7,0.119]
[1642028909118,0.119,3361.1,3360.8,0.00113685]
[1642028909319,0.61082975,3361.1,3360.8,0.00113685]
[1642028909577,2.64693381,3361.1,3360.8,0.00113685]
[1642028909981,3.39080381,3361.1,3360.5,1.43396983]
[1642028910176,0.00113685,3361.0,3360.9,0.00442557]
[1642028910785,1.35576911,3361.0,3360.9,1.20240801]
[1642028911983,1.84758979,3361.0,3360.9,1.20240801]
[1642028914808,1.35576911,3361.0,3360.9,1.20240801]
[1642028916314,0.00113685,3361.0,3360.9,1.20240801]
[1642028918763,0.00113685,3361.0,3360.9,0.00442557]
[1642028919869,0.50531722,3361.0,3360.9,0.00442557]
[1642028920269,0.50736953,3361.0,3360.7,1.54131492]
[1642028920469,0.74388,3360.9,3360.7,1.54131492]
[1642028920708,0.74388,3360.9,3360.6,0.00113684]
[1642028920913,4.40473102,3360.9,3360.6,0.00113684]
[1642028921115,4.40473102,3360.9,3360.3,0.00284211]
[1642028921116,0.0140144,3360.8,3360.3,0.00284211]
[1642028921417,0.80418037,3360.8,3360.3,0.00284211]
[1642028921616,4.9,3360.6,3359.4,0.119]
[1642028921816,2.15218496,3360.0,3359.9,0.0022737]
[1642028922016,1.16322,3360.0,3359.9,0.0022737]
[1642028922214,1.16322,3360.0,3359.7,0.00341054]
[1642028922414,2.65172,3360.0,3359.7,0.00341054]
[1642028923216,5.50631206,3360.0,3359.7,0.00341054]
[1642028923415,0.74424,3359.9,3359.7,0.00341054]
[1642028923814,3.65711789,3359.8,3359.7,0.00341054]
[1642028924017,2.02078,3359.8,3359.7,0.00341054]
[1642028924862,3.37541226,3359.8,3359.7,0.00341054]
[1642028925063,2.63113226,3359.8,3359.7,0.00341054]
[1642028925363,1.35666313,3359.8,3359.7,0.00341054]
[1642028927368,0.00203087,3359.8,3359.7,0.00341054]
[1642028930620,0.00203087,3359.8,3359.7,1.03604112]
[1642028933873,0.00203087,3359.8,3359.7,3.40286295]
[1642028934073,0.00203087,3359.8,3359.7,4.40286295]
[1642028934270,0.00203087,3359.8,3359.7,21.80286295]
[1642028934673,1.3557691,3360.5,3360.1,0.74363]
[1642028934871,1.3557691,3360.5,3360.3,19.41615032]
[1642028934872,0.00113684,3360.5,3360.3,19.41615032]
[1642028935271,0.00113684,3360.5,3360.4,5.51439294]
[1642028935470,0.00113684,3360.5,3360.4,9.22106246]
[1642028935711,0.00113684,3360.5,3360.4,3.77106246]
[1642028935916,0.00113684,3360.5,3360.4,5.45504823]
[1642028936117,0.00113684,3360.5,3360.4,8.76960279]
[1642028936315,0.00113684,3360.5,3360.4,9.80223337]
[1642028937921,0.00113684,3360.5,3360.4,8.80223337]
[1642028939020,0.00113684,3360.5,3360.4,9.80223337]
[1642028940060,0.00113684,3360.5,3360.4,27.20223337]
[1642028940262,0.00113684,3360.5,3360.4,27.2061667]
[1642028942572,0.119,3361.5,3361.0,0.74351]
[1642028942772,0.119,3361.5,3361.0,1.56231]
[1642028942972,1.35974808,3361.4,3361.0,1.56231]
[1642028943212,1.35974808,3361.4,3361.0,1.68131]
[1642028943414,0.00454739,3361.3,3361.0,2.68131]
[1642028943617,0.00454739,3361.3,3361.2,1.3873672]
[1642028943814,0.119,3362.1,3361.2,2.1308732]
[1642028944014,0.119,3361.9,3361.8,1.27492017]
[1642028944221,0.00795793,3361.9,3361.8,1.27492017]
[1642028944415,0.12685793,3361.9,3361.8,1.27492017]
[1642028944617,0.00795793,3361.9,3361.8,1.27492017]
[1642028944817,0.63004807,3361.9,3361.8,1.27492017]
[1642028945017,0.51114807,3361.9,3361.8,1.27492017]
[1642028945219,2.04079405,3361.9,3361.8,1.27492017]
[1642028947269,1.92189405,3361.9,3361.8,1.27492017]
[1642028947469,1.41870391,3361.9,3361.8,1.27492017]
[1642028948669,1.41870391,3361.9,3361.7,0.74349]
[1642028948871,1.41870391,3361.9,3361.2,4.06322689]
[1642028949172,0.12628951,3361.8,3361.2,9.969e-05]
[1642028949570,0.00682109,3361.7,3361.2,9.969e-05]
[1642028949971,0.00625266,3361.6,3361.2,9.969e-05]
[1642028950171,0.00625266,3361.6,3361.0,3.00814054]
[1642028950372,0.00568424,3361.5,3361.0,3.00814054]
[1642028950570,0.00568424,3361.5,3361.0,4.51725251]
[1642028950820,1.46836259,3361.6,3361.0,4.51725251]
[1642028950821,0.00511582,3361.4,3361.0,4.51725251]
[1642028951218,0.00454739,3361.3,3361.0,4.51725251]
[1642028951617,2.87910857,3361.6,3361.0,4.51725251]
[1642028951618,0.00397897,3361.2,3361.0,4.51725251]
[1642028952022,0.00341054,3361.1,3361.0,4.51725251]
[1642028952620,0.00341054,3361.1,3361.0,3.00814054]
[1642028957671,0.00341054,3361.1,3361.0,6.95814054]
[1642028957871,0.00341054,3361.1,3361.0,24.47714054]
[1642028958071,0.00341054,3361.1,3361.0,21.52714054]
[1642028958313,0.00341054,3361.1,3361.0,21.59153348]
[1642028958914,0.00341054,3361.1,3361.0,4.19153348]
[1642028959614,0.00341054,3361.1,3361.0,6.89153348]
[1642028959819,0.00341054,3361.1,3361.0,24.29153348]
[1642028960215,0.00341054,3361.1,3361.0,21.59153348]
[1642028962562,0.00341054,3361.1,3361.0,22.64115541]
[1642028965568,0.119,3362.6,3361.8,0.74343]
[1642028966022,0.00795793,3362.5,3361.8,0.74343]
[1642028966224,0.1189,3362.4,3361.8,0.74343]
[1642028966425,0.12628951,3362.4,3362.2,1.17518958]
[1642028966623,0.00682109,3362.3,3362.2,1.17518958]
[1642028967825,1.40420516,3362.3,3362.2,1.17518958]
[1642028972467,1.40420516,3362.3,3362.0,0.74343]
[1642028972867,0.00625266,3362.2,3362.0,0.74343]
[1642028973320,0.00568424,3362.1,3362.0,0.74343]
[1642028974217,0.00568424,3362.1,3362.0,1.91961896]
[1642028974618,1.40306831,3362.1,3362.0,1.91961896]
[1642028974819,1.52196831,3362.1,3362.0,1.91961896]
[1642028975017,1.52196831,3362.1,3361.9,1.1655015]
[1642028975221,0.1189,3362.0,3361.9,1.1655015]
[1642028975417,0.00511582,3362.0,3361.9,1.1655015]
[1642028976222,0.00511582,3362.0,3361.9,2.39878911]
[1642028976622,1.40249989,3362.0,3361.9,2.39878911]
[1642028976822,1.40249989,3362.0,3361.9,1.23328761]
[1642028977079,1.40249989,3362.0,3361.7,1.48686]
[1642028977080,1.40249989,3362.0,3361.3,3.0928133]
[1642028977278,1.40249989,3362.0,3361.3,1.60591]
[1642028977484,0.00454739,3361.9,3361.3,1.60591]
[1642028977882,0.00397897,3361.8,3361.3,1.60591]
[1642028978081,0.00397897,3361.8,3361.5,1.23509533]
[1642028978284,0.00341055,3361.7,3361.5,1.23509533]
[1642028978680,1.28729761,3362.2,3361.5,1.23509533]
[1642028978681,0.00284212,3361.6,3361.5,1.23509533]
[1642028979282,0.00284212,3361.6,3361.5,2.59267707]
[1642028979684,0.00284212,3361.6,3361.5,1.35758174]
[1642028980281,1.40350988,3361.6,3361.5,1.35758174]
[1642028982731,1.54520325,3362.3,3361.6,6.9]
[1642028982932,1.54520325,3362.3,3361.8,0.01008724]
[1642028982933,1.42630325,3362.3,3361.8,0.01008724]
[1642028983133,1.42630325,3362.3,3361.9,17.5189]
[1642028983329,1.42630325,3362.3,3361.9,17.58329294]
[1642028983530,1.42630325,3362.3,3362.0,1.0]
[1642028983732,1.42630325,3362.3,3362.2,6.94644319]
[1642028983932,1.42630325,3362.3,3362.2,24.34644319]
[1642028984133,1.4274401,3362.3,3362.2,25.41083613]
[1642028985178,0.00113685,3362.3,3362.2,25.41083613]
[1642028986380,0.00113685,3362.3,3362.2,21.31083613]
[1642028989223,0.1189,3363.3,3362.8,0.74313]
[1642028989424,0.1189,3363.3,3362.9,0.7431339]
[1642028989622,0.00511581,3363.2,3362.9,0.7431339]
[1642028990025,0.00454738,3363.1,3362.9,0.7431339]
[1642028990226,0.00454738,3363.1,3362.9,2.06735595]
[1642028990428,0.00397896,3363.0,3362.9,2.06735595]
[1642028990630,0.00397896,3363.0,3362.9,3.55372595]
[1642028991228,0.00397896,3363.0,3362.9,3.61811889]
[1642028991428,1.54520325,3363.8,3363.0,3.35]
[1642028991634,1.42630325,3363.8,3363.7,3.1353173]
[1642028992077,0.1189,3363.9,3363.7,3.1353173]
[1642028992276,1.42630325,3364.1,3363.7,3.1353173]
[1642028992277,0.1189,3364.0,3363.7,0.74304]
[1642028992677,0.12458424,3364.0,3363.7,0.74304]
[1642028993480,0.12458424,3364.0,3363.7,2.27212671]
[1642028994082,0.12458424,3364.0,3363.7,0.74304]
[1642028994985,0.00568424,3364.0,3363.7,0.74304]
[1642028995820,0.00568424,3364.0,3363.6,1.48607]
[1642028998621,0.00568424,3364.0,3363.2,2.61340282]
[1642028998622,1.29350894,3363.8,3363.2,2.61340282]
[1642028998825,1.29350894,3363.8,3363.2,1.48619]
[1642028999023,1.29350894,3363.8,3363.0,2.85148]
[1642028999024,0.12287896,3363.7,3363.0,2.73258]
[1642028999227,0.12287896,3363.7,3363.0,1.48628]
[1642028999470,0.00341054,3363.6,3363.0,1.48628]
[1642028999872,1.22021482,3363.3,3363.0,1.48628]
[1642029000272,0.00113685,3363.2,3363.0,1.48628]
[1642029001674,0.00113685,3363.2,3363.0,2.92188608]
[1642029002477,0.00113685,3363.2,3363.1,3.76439294]
[1642029002679,0.00113685,3363.2,3363.1,6.15539763]
[1642029003325,0.00113685,3363.2,3363.1,0.18329294]
[1642029003524,0.00113685,3363.2,3363.1,3.44799091]
[1642029003924,0.00113685,3363.2,3363.1,2.44799091]
[1642029004524,0.00113685,3363.2,3363.1,4.19111091]
[1642029004725,0.00113685,3363.2,3363.1,1.92641294]
[1642029005430,0.00113685,3363.2,3363.1,4.18547917]
[1642029006231,0.00113685,3363.2,3363.1,1.92641294]
[1642029007382,0.00113685,3363.2,3363.1,4.19874764]
[1642029009185,0.00113685,3363.2,3363.1,1.92641294]
[1642029009585,0.00113685,3363.2,3363.1,4.19606222]
[1642029011231,0.00113685,3363.2,3363.1,3.19606222]
[1642029011430,0.00113685,3363.2,3363.1,0.92641294]
[1642029011632,0.00113685,3363.2,3363.1,1.92641294]
[1642029011832,0.00113685,3363.2,3363.1,1.80751294]
[1642029012134,0.00113685,3363.2,3363.1,19.20751294]
[1642029012532,0.00113685,3363.2,3363.1,1.80751294]
[1642029012833,0.00113685,3363.2,3363.1,4.10717759]
[1642029013633,0.00113685,3363.2,3363.1,21.50717759]
[1642029014032,0.00113685,3363.2,3363.1,4.10717759]
[1642029014234,0.00113685,3363.2,3363.1,21.50717759]
[1642029014476,1.00299675,3364.0,3363.3,17.4]
[1642029014678,1.00299675,3364.0,3363.7,0.74289]
[1642029014874,0.1189,3364.7,3363.8,6.35]
[1642029015077,0.1189,3364.7,3363.9,18.4]
[1642029015274,0.00227369,3364.4,3363.9,18.4]
[1642029015477,0.00227369,3364.4,3364.0,2.689701]
[1642029015675,0.00170527,3364.3,3364.1,1.59160054]
[1642029015883,0.00170527,3364.3,3364.1,1.65599348]
[1642029016080,0.00113684,3364.2,3364.1,7.27715828]
[1642029016280,0.00113684,3364.2,3364.1,7.21276534]
[1642029016499,0.00113684,3364.2,3364.1,3.14158348]